bitfinex/quotes_ETHUSD_20250813
["timestamp","ask_amount","ask_price","bid_price","bid_amount"]
[1755095365679,0.0012,4672.3,4672.2,4.57912716]
[1755095366176,0.0012,4672.3,4672.2,4.56812716]
[1755095367672,0.0012,4672.3,4672.2,4.54812716]
[1755095368590,0.4754,4672.3,4672.2,0.0008]
[1755095368896,0.4754,4672.3,4671.1,5.128]
[1755095368897,2.4423,4672.3,4671.1,5.128]
[1755095369356,0.4742,4672.2,4671.1,5.128]
[1755095369851,1.8552,4672.1,4671.1,5.128]
[1755095370040,1.8552,4672.1,4671.6,3.959]
[1755095370245,0.4688,4672.0,4671.7,9.087]
[1755095370446,1.8552,4671.9,4671.7,9.087]
[1755095370676,0.4688,4671.8,4671.7,9.087]
[1755095370880,2.324,4671.8,4671.7,9.087]
[1755095372296,2.324,4671.8,4671.7,9.073]
[1755095372496,5.324,4671.8,4671.7,5.128]
[1755095372801,5.324,4671.8,4671.7,9.072]
[1755095373304,0.0012,4672.3,4671.7,9.072]
[1755095374110,0.0012,4672.3,4671.7,5.128]
[1755095374270,0.0012,4672.3,4671.8,3.938]
[1755095374476,0.0012,4672.3,4671.9,0.9067]
[1755095375000,0.0012,4672.3,4672.0,3.938]
[1755095375175,0.0012,4672.3,4671.7,5.128]
[1755095375371,0.47,4672.3,4671.7,5.128]
[1755095375674,0.47,4672.3,4671.8,3.935]
[1755095375874,0.47,4672.3,4671.7,5.128]
[1755095376076,1.8552,4672.2,4671.8,3.935]
[1755095376381,2.324,4672.1,4671.8,0.0008]
[1755095376585,2.324,4672.1,4671.9,3.933]
[1755095376801,2.324,4672.0,4671.9,3.933]
[1755095376999,0.4688,4672.0,4671.9,3.933]
[1755095377310,0.0004,4672.3,4671.9,3.933]
[1755095377675,0.4692,4672.3,4671.9,3.933]
[1755095377876,2.324,4672.2,4671.8,0.0008]
[1755095378212,2.324,4672.2,4671.9,3.926]
[1755095378396,2.324,4672.1,4672.0,3.925]
[1755095378571,2.324,4672.1,4671.8,0.0008]
[1755095378771,2.324,4672.0,4671.8,0.0008]
[1755095379017,2.324,4671.9,4671.8,0.0008]
[1755095379180,5.324,4671.9,4671.8,5.1298]
[1755095379377,5.4312,4671.9,4671.8,5.1298]
[1755095379604,2.4312,4671.9,4671.8,5.1298]
[1755095379908,2.63063487,4671.9,4671.8,0.0008]
[1755095380120,2.63063487,4671.9,4671.8,9.0488]
[1755095380281,2.4312,4671.9,4671.8,9.0488]
[1755095380773,2.4312,4671.9,4671.8,5.1298]
[1755095380774,0.576,4671.9,4671.8,5.1298]
[1755095380973,0.576,4671.9,4671.8,9.0458]
[1755095381196,0.576,4671.9,4671.8,5.1298]
[1755095381392,2.4312,4671.9,4671.8,9.0468]
[1755095381787,2.4312,4671.9,4671.8,5.1298]
[1755095381991,2.4312,4671.9,4671.8,9.0458]
[1755095382208,2.4312,4671.9,4671.8,5.1298]
[1755095382613,5.63059011,4671.9,4671.8,9.0418]
[1755095382775,5.63059011,4671.9,4671.8,5.1298]
[1755095382979,5.63059011,4671.9,4671.8,9.0398]
[1755095383508,6.0897661,4671.9,4671.8,9.0398]
[1755095383671,3.0897661,4671.9,4670.9,2.667]
[1755095383874,1.28268257,4672.3,4671.8,5.129]
[1755095384110,21.32964689,4671.9,4670.9,2.667]
[1755095384307,3.65830124,4671.8,4671.6,9.033]
[1755095384522,0.19912525,4671.7,4671.6,9.033]
[1755095384704,5.63032525,4671.7,4671.6,5.129]
[1755095384891,3.0,4671.6,4670.9,0.001]
[1755095385098,21.32964689,4671.0,4670.9,0.001]
[1755095385292,21.52877214,4671.0,4670.9,0.001]
[1755095385491,23.85277214,4671.0,4670.9,3.837]
[1755095385777,24.01474905,4671.0,4670.9,3.837]
[1755095385978,24.01474905,4671.0,4670.9,0.001]
[1755095386190,24.01474905,4671.0,4670.9,3.898]
[1755095386389,24.01474905,4671.0,4670.9,0.001]
[1755095386917,24.01474905,4671.0,4670.9,2.72]
[1755095387124,24.01474905,4671.0,4670.9,0.001]
[1755095387310,24.01474905,4671.0,4670.9,3.892]
[1755095387622,24.01474905,4671.0,4670.9,3.887]
[1755095388002,24.01441028,4671.0,4670.9,3.887]
[1755095388329,24.01441028,4671.0,4670.6,0.001]
[1755095388330,3.0,4670.9,4670.6,0.001]
[1755095388499,0.19878648,4670.8,4670.7,2.777]
[1755095388703,5.62998648,4670.8,4670.7,2.777]
[1755095389936,3.0,4670.7,4670.6,0.001]
[1755095390234,0.1072,4670.8,4670.7,3.881]
[1755095390414,0.3056865,4670.8,4670.6,0.001]
[1755095390729,0.3056865,4670.8,4670.3,0.001]
[1755095390730,2.324,4670.7,4670.3,0.001]
[1755095390893,0.1072,4670.4,4670.3,0.001]
[1755095391444,2.4312,4670.4,4670.3,0.001]
[1755095391734,3.1072,4670.4,4670.3,5.132]
[1755095392023,3.576,4670.4,4670.3,9.001]
[1755095392621,3.576,4670.4,4670.3,8.999]
[1755095392802,27.14613933,4670.4,4670.3,8.999]
[1755095392997,27.14613933,4670.4,4670.3,5.132]
[1755095394025,3.0,4670.4,4670.3,8.992]
[1755095394204,0.1072,4670.4,4670.3,10.9192]
[1755095394418,0.1072,4670.4,4670.3,3.06392]
[1755095394622,0.1072,4670.4,4670.3,10.9619]
[1755095395507,0.1072,4670.4,4670.3,10.9182]
[1755095395703,0.1072,4670.4,4670.3,7.0592]
[1755095395931,0.1072,4670.4,4670.3,10.9559]
[1755095396440,0.1072,4670.4,4670.3,10.9567]
[1755095396833,0.1072,4670.4,4670.3,10.913]
[1755095397056,0.1072,4670.4,4670.3,7.06]
[1755095397347,0.1072,4670.4,4670.3,10.913]
[1755095397742,0.1072,4670.4,4670.3,10.9567]
[1755095397919,0.1072,4670.4,4670.3,11.807167]
[1755095398117,0.1072,4670.4,4670.3,7.954167]
[1755095398424,0.1072,4670.4,4670.3,11.751467]
[1755095398648,0.1072,4670.4,4670.3,10.899]
[1755095400319,0.1072,4670.4,4670.3,8.9708]
[1755095400513,0.1072,4670.4,4670.3,5.1328]
[1755095400751,0.1072,4670.4,4670.3,8.9618]
[1755095401251,0.1072,4670.4,4670.3,10.8454]
[1755095401430,0.1072,4670.4,4670.3,11.97374]
[1755095401746,0.1072,4670.4,4670.3,11.93004]
[1755095402345,0.1072,4670.4,4670.3,10.8454]
[1755095402867,0.1072,4670.4,4670.3,1.8854]
[1755095403043,0.1072,4670.4,4670.3,10.8364]
[1755095403359,0.1072,4670.4,4670.3,5.1318]
[1755095403527,0.1072,4670.4,4670.3,8.9528]
[1755095403729,0.1072,4670.4,4670.3,8.9498]
[1755095403926,0.5812,4670.4,4670.3,8.9498]
[1755095404131,0.1072,4670.4,4670.3,8.9478]
[1755095404331,0.1072,4670.4,4670.3,8.9468]
[1755095404965,0.1072,4670.4,4670.3,8.9458]
[1755095405173,0.1072,4670.4,4670.3,8.9448]
[1755095405534,0.1072,4670.4,4670.3,10.8274]
[1755095405836,0.1072,4670.4,4670.3,11.72198]
[1755095406291,0.002,4671.5,4670.3,11.76568]
[1755095406489,0.1064,4671.0,4670.4,1.94871144]
[1755095406776,0.1064,4671.0,4670.6,5.131]
[1755095407231,0.1064,4671.0,4670.7,1.9273]
[1755095407668,0.002,4671.5,4670.8,1.9273]
[1755095407841,0.1072,4671.2,4670.9,3.82640915]
[1755095408037,0.1072,4671.2,4671.0,2.98279091]
[1755095408360,0.1072,4671.2,4671.1,1.8836]
[1755095409035,0.1072,4671.2,4671.0,1.09919091]
[1755095409230,0.1072,4671.2,4671.1,1.8836]
[1755095409487,0.1072,4671.2,4671.1,5.6866]
[1755095409691,0.1072,4671.2,4671.1,1.8836]
[1755095409856,0.1072,4671.2,4670.6,5.131]
[1755095410056,0.1072,4671.2,4670.7,4.54489291]
[1755095410278,0.002,4671.5,4670.7,3.803]
[1755095410459,0.1072,4670.8,4670.7,5.6866]
[1755095410909,0.1072,4670.8,4670.7,1.9273]
[1755095411197,0.1072,4670.8,4670.7,5.7303]
[1755095411397,0.002,4671.5,4670.7,5.7303]
[1755095411557,0.1072,4671.2,4670.8,1.11574291]
[1755095411757,0.1072,4671.2,4670.9,3.803]
[1755095412094,0.1072,4671.2,4670.9,5.6866]
[1755095412398,0.1072,4671.2,4671.0,1.8836]
[1755095412695,0.1072,4671.2,4671.1,3.802]
[1755095413739,0.1072,4671.2,4671.1,5.6856]
[1755095414315,0.1072,4671.2,4671.1,6.25424]
[1755095414990,0.002,4671.5,4671.1,6.29794]
[1755095415186,0.002,4671.5,4671.2,1.9273]
[1755095415187,0.1092,4671.5,4671.2,1.9273]
[1755095415512,0.1092,4671.5,4671.2,1.8836]
[1755095415683,0.002,4671.5,4671.4,0.1072]
[1755095415882,0.002,4671.5,4671.4,3.9092]
[1755095416092,0.002,4671.5,4671.4,5.8365]
[1755095416878,0.002,4671.5,4671.4,1.9908]
[1755095417074,0.002,4671.5,4671.4,5.7928]
[1755095417280,0.002,4671.5,4671.4,6.54966614]
[1755095417888,0.002,4671.5,4671.4,6.59336614]
[1755095418294,0.002,4671.5,4671.4,2.79136614]
[1755095418491,0.002,4671.5,4671.4,5.85690685]
[1755095418698,0.0012,4671.5,4671.4,5.7918]
[1755095419006,0.0012,4671.5,4671.4,5.7926]
[1755095419813,0.0012,4671.5,4671.4,6.9759374]
[1755095420115,0.0012,4671.5,4671.4,5.8363]
[1755095420312,0.0012,4671.5,4671.4,2.73289374]
[1755095420517,0.0012,4671.5,4671.4,5.7926]
[1755095420690,0.0012,4671.5,4671.4,1.9916]
[1755095420899,0.0012,4671.5,4671.4,5.7926]
[1755095421293,0.0012,4671.5,4671.4,5.8363]
[1755095421621,0.0012,4671.5,4671.4,9.7876]
[1755095421786,0.0012,4671.5,4671.4,10.88032374]
[1755095422117,0.0012,4671.5,4671.4,8.21332374]
[1755095422313,0.0012,4671.5,4671.4,12.01332374]
[1755095423716,0.0012,4671.5,4671.4,0.0008]
[1755095423893,0.0012,4671.5,4671.4,3.8008]
[1755095423894,0.5824,4671.5,4671.4,3.8008]
[1755095425027,0.1084,4671.5,4671.4,3.8008]
[1755095425212,0.1084,4671.5,4671.4,3.7998]
[1755095425396,0.1084,4671.5,4671.4,1.8844]
[1755095425583,0.1084,4671.5,4671.4,5.87184]
[1755095425786,0.0012,4671.5,4671.4,5.87184]
[1755095426214,0.0012,4671.5,4671.4,3.98824]
[1755095426417,0.0012,4671.5,4671.4,0.18924]
[1755095426723,0.4752,4671.5,4671.4,3.7998]
[1755095427216,0.4752,4671.5,4671.4,0.0008]
[1755095427423,0.4752,4671.5,4671.4,3.7998]
[1755095429339,0.4752,4671.5,4671.4,3.7988]
[1755095429340,2.3583,4671.5,4671.4,3.7988]
[1755095430638,2.3583,4671.5,4671.4,0.0008]
[1755095430812,2.3583,4671.5,4671.4,3.7988]
[1755095431533,0.5824,4671.5,4671.4,8.9268]
[1755095431709,2.4398,4671.5,4671.4,5.1288]
[1755095431910,2.4398,4671.5,4671.4,8.9268]
[1755095432525,0.5824,4671.5,4671.4,8.9268]
[1755095432727,0.5824,4671.5,4671.4,8.9258]
[1755095433542,2.4398,4671.5,4671.4,8.9268]
[1755095434351,5.4398,4671.5,4671.4,8.9258]
[1755095435054,3.5824,4671.5,4671.4,8.9258]
[1755095435411,3.1084,4671.5,4671.4,8.9258]
[1755095435619,3.5624,4671.5,4671.4,8.9258]
[1755095435819,3.5624,4671.5,4671.4,5.1288]
[1755095436018,3.5624,4671.5,4671.4,8.9258]
[1755095436428,3.5624,4671.5,4671.4,5.1288]
[1755095436754,3.5616,4671.5,4671.4,8.9258]
[1755095436913,3.5616,4671.5,4671.4,5.1288]
[1755095437115,3.5616,4671.5,4671.4,8.9248]
[1755095438240,5.419,4671.5,4671.4,8.9248]
[1755095438648,5.419,4671.5,4671.4,5.1288]
[1755095438853,5.419,4671.5,4671.4,5.129]
[1755095439058,5.419,4671.5,4671.4,5.1298]
[1755095439357,5.419,4671.5,4670.6,2.666]
[1755095439358,3.0,4671.4,4670.6,2.666]
[1755095439515,3.0,4671.2,4670.7,5.129]
[1755095439715,0.454,4671.1,4670.7,5.129]
[1755095439915,0.1072,4670.8,4670.7,5.129]
[1755095440127,2.4186,4670.8,4670.7,5.129]
[1755095440548,5.4186,4670.8,4670.7,5.129]
[1755095440719,5.4186,4670.8,4670.7,8.924]
[1755095441927,5.4186,4670.8,4670.7,5.129]
[1755095442127,5.4186,4670.8,4670.7,8.924]
[1755095442350,3.0,4670.7,4670.3,0.001]
[1755095442558,0.1072,4670.6,4670.4,5.129]
[1755095443055,0.1072,4670.6,4670.0,0.001]
[1755095443056,0.3055923,4670.6,4670.0,0.001]
[1755095443216,0.1072,4670.3,4670.0,0.001]
[1755095443414,0.1072,4670.3,4669.6,0.001]
[1755095443625,26.64107422,4669.9,4669.6,0.001]
[1755095444013,3.0,4669.8,4669.2,0.001]
[1755095444230,5.3114,4669.8,4669.6,3.085]
[1755095444435,0.1072,4669.6,4669.2,0.001]
[1755095444663,0.1072,4669.6,4669.5,3.247]
[1755095444951,0.5612,4669.6,4669.5,3.247]
[1755095445135,0.5612,4669.6,4668.6,0.001]
[1755095445136,2.47493269,4669.6,4668.6,0.001]
[1755095445335,2.47493269,4669.6,4668.1,0.02]
[1755095445336,3.0,4668.8,4668.1,0.02]
[1755095445537,3.0,4668.1,4667.6,0.11258957]
[1755095445753,2.3114,4668.0,4667.6,0.001]
[1755095445916,2.3114,4668.0,4665.7,1.8276]
[1755095446124,0.454,4667.9,4665.7,1.8276]
[1755095446553,1.8574,4667.8,4665.7,1.8276]
[1755095446737,23.53387422,4667.5,4665.7,1.8276]
[1755095447051,23.53387422,4667.5,4665.4,0.11163527]
[1755095447052,3.0,4667.4,4665.4,0.11163527]
[1755095447256,5.3114,4667.4,4665.4,0.11163527]
[1755095447438,2.3114,4667.3,4667.2,1.773]
[1755095447639,2.3114,4667.3,4665.1,1.8476]
[1755095447818,3.22652703,4667.4,4667.2,3.351]
[1755095448016,3.0,4667.4,4667.2,3.351]
[1755095448251,3.0,4667.4,4667.3,3.424]
[1755095448642,3.0,4667.4,4665.1,0.02]
[1755095448643,4.8574,4667.4,4665.1,0.02]
[1755095448856,2.3114,4667.3,4665.1,0.02]
[1755095449068,2.3114,4667.3,4665.2,1.8276]
[1755095449069,3.0,4666.4,4665.2,1.8276]
[1755095449748,0.454,4666.3,4665.2,1.8276]
[1755095450119,3.0,4666.4,4665.2,1.8276]
[1755095450120,0.454,4666.2,4665.2,1.8276]
[1755095450322,0.61399338,4666.2,4665.2,1.8276]
[1755095450541,0.61399338,4666.2,4666.1,2.734]
[1755095450856,0.61399338,4666.2,4666.1,3.814]
[1755095451158,0.454,4666.9,4666.1,0.02]
[1755095451456,3.0,4666.2,4666.1,0.02]
[1755095451772,5.3114,4666.2,4666.1,8.947]
[1755095451923,3.454,4666.2,4666.1,8.947]
[1755095452123,0.454,4666.2,4666.1,8.947]
[1755095452324,23.98787422,4666.2,4666.1,5.153]
[1755095452545,28.84527422,4666.2,4666.1,8.946]
[1755095452924,26.98787422,4666.2,4666.1,8.946]
[1755095453122,3.0,4666.2,4666.1,8.946]
[1755095455253,3.1072,4666.2,4666.1,8.946]
[1755095456057,0.1072,4666.2,4666.1,11.22386435]
[1755095456559,0.1072,4666.2,4666.1,8.9458]
[1755095457355,0.1072,4666.2,4666.1,8.9468]
[1755095458632,0.5612,4666.2,4666.1,5.1548]
[1755095458953,0.1072,4666.2,4666.1,5.1548]
[1755095459260,0.5612,4666.2,4666.1,8.9468]
[1755095459485,0.5612,4666.2,4666.1,5.1548]
[1755095459630,0.5612,4666.2,4666.1,8.9458]
[1755095459953,0.1072,4666.2,4666.1,8.9458]
[1755095460260,0.1072,4666.2,4666.1,5.1548]
[1755095460427,0.1072,4666.2,4666.1,8.9458]
[1755095460622,0.1072,4666.2,4666.1,10.8704]
[1755095460859,0.1072,4666.2,4666.1,11.95744]
[1755095461269,0.1072,4666.2,4666.1,12.06794]
[1755095462162,0.4468,4668.3,4666.1,12.06794]
[1755095462322,0.1072,4666.8,4666.2,2.0351]
[1755095462525,0.1072,4666.8,4666.3,1.424494]
[1755095462744,0.1072,4666.8,4666.4,3.79]
[1755095462941,0.1072,4666.5,4666.4,3.79]
[1755095463434,0.554,4666.5,4666.2,0.0008]
[1755095463757,0.4468,4666.4,4666.3,3.79]
[1755095463969,0.1072,4666.5,4666.3,3.79]
[1755095464858,0.1072,4666.5,4666.2,0.0008]
[1755095465176,0.4468,4666.4,4666.3,3.789]
[1755095465334,0.4468,4666.4,4666.1,0.02]
[1755095465529,2.2607,4666.3,4666.2,8.923]
[1755095465748,5.56388412,4666.3,4666.2,5.135]
[1755095465954,5.56388412,4666.3,4666.2,8.924]
[1755095466454,0.1072,4666.3,4666.2,8.923]
[1755095467274,0.1072,4666.3,4666.2,11.7419]
[1755095467473,0.1072,4666.3,4666.2,11.8524]
[1755095467702,1.8139,4668.4,4666.2,11.8524]
[1755095467703,0.1072,4666.4,4666.2,11.8524]
[1755095467880,0.1072,4666.8,4666.3,3.22234]
[1755095468189,0.1072,4666.8,4666.4,2.0351]
[1755095468670,0.1072,4667.0,4666.5,1.9246]
[1755095468859,0.02,4670.4,4666.6,0.26272867]
[1755095469180,0.02,4670.4,4666.5,5.19153524]
[1755095469181,0.17957908,4669.4,4666.8,3.0]
[1755095469526,0.4468,4669.2,4666.9,3.787]
[1755095469695,0.4468,4669.2,4666.8,1.9246]
[1755095469986,0.4468,4668.7,4666.9,3.786]
[1755095470491,0.4468,4668.7,4667.0,1.9246]
[1755095471075,0.4468,4668.7,4667.1,3.786]
[1755095471574,0.4468,4668.7,4667.0,1.9246]
[1755095471575,0.4468,4668.7,4667.3,5.134]
[1755095471781,0.4468,4668.7,4667.4,3.785]
[1755095472090,0.4468,4668.7,4667.5,8.919]
[1755095472280,0.4468,4668.7,4667.6,8.919]
[1755095472660,0.4468,4668.7,4667.2,2.669]
[1755095472994,0.4468,4668.7,4667.3,8.919]
[1755095473206,0.4468,4668.7,4667.3,8.9198]
[1755095473404,3.0,4669.2,4667.3,10.8444]
[1755095473405,3.4468,4669.2,4667.3,10.8444]
[1755095473771,3.4468,4669.2,4667.3,8.9198]
[1755095473998,3.4468,4669.2,4667.4,1.9246]
[1755095474209,0.4468,4669.2,4667.5,1.397276]
[1755095474573,0.4468,4669.2,4667.6,1.9246]
[1755095474787,0.02,4669.4,4667.6,1.9246]
[1755095474997,0.4468,4669.2,4667.7,3.783]
[1755095475304,0.4468,4669.2,4667.8,3.783]
[1755095475609,0.4468,4669.2,4667.6,1.9246]
[1755095475778,0.4468,4669.2,4667.9,3.783]
[1755095476169,0.4468,4668.5,4668.0,3.783]
[1755095476601,0.4468,4669.0,4668.0,3.783]
[1755095476909,0.4468,4669.0,4668.0,5.7076]
[1755095477120,0.4468,4669.0,4668.0,0.3783]
[1755095477283,0.4468,4668.5,4668.1,3.782]
[1755095477484,2.2607,4668.4,4668.2,3.782]
[1755095477678,2.2607,4668.3,4668.2,3.782]
[1755095477873,5.2607,4668.3,4668.2,3.782]
[1755095478296,5.4580025,4668.3,4668.2,3.7828]
[1755095478470,5.4572025,4668.3,4668.2,3.7828]
[1755095478675,3.1973025,4668.3,4668.2,3.7828]
[1755095478894,3.3045025,4668.3,4668.2,0.0008]
[1755095479099,3.7513025,4668.3,4668.2,8.9148]
[1755095479404,3.7513025,4668.3,4668.2,5.1338]
[1755095479570,3.7513025,4668.3,4668.2,8.9148]
[1755095480096,3.75125222,4668.3,4668.2,8.9148]
[1755095480686,3.75125222,4668.3,4668.2,5.1338]
[1755095481021,5.90267016,4668.3,4668.2,8.9138]
[1755095481419,3.75125222,4668.3,4668.2,8.9138]
[1755095481781,3.30445222,4668.3,4668.2,8.9138]
[1755095482178,3.30445222,4668.3,4668.2,8.9128]
[1755095482382,3.75125222,4668.3,4668.2,8.9128]
[1755095482608,5.56515222,4668.3,4668.2,5.1338]
[1755095482913,5.56515222,4668.3,4666.2,1.9246]
[1755095482914,2.56515222,4668.3,4666.2,1.9246]
[1755095483079,3.0,4667.3,4665.6,1.9256]
[1755095483275,0.19747374,4667.2,4665.6,1.9256]
[1755095483476,0.19747602,4667.1,4666.1,1.9446]
[1755095483691,4.8139,4668.0,4666.1,1.9446]
[1755095483692,0.19747602,4667.0,4666.1,1.9446]
[1755095483898,0.1072,4666.2,4666.1,1.9446]
[1755095484121,0.1072,4666.7,4666.2,0.1072]
[1755095484426,0.1072,4666.7,4666.3,1.9254]
[1755095484579,0.1072,4667.1,4666.4,0.62474379]
[1755095484778,0.1072,4667.1,4666.5,1.9254]
[1755095485015,0.1072,4667.1,4666.6,0.02222887]
[1755095485176,0.1072,4667.6,4666.7,2.0326]
[1755095485377,0.1072,4667.6,4666.8,4.0423114]
[1755095485639,0.1072,4667.6,4667.0,0.1072]
[1755095485909,0.002,4668.6,4667.1,1.9254]
[1755095486077,0.1072,4667.8,4667.1,1.9254]
[1755095486278,0.1072,4668.0,4667.3,0.1072]
[1755095486614,0.1072,4668.0,4667.4,5.7016]
[1755095486814,0.1072,4668.0,4667.5,1.9246]
[1755095487220,0.1072,4668.0,4667.6,5.7006]
[1755095487383,0.1072,4668.0,4667.7,1.9246]
[1755095487879,0.1072,4668.0,4667.8,5.7006]
[1755095488215,0.1072,4668.0,4667.9,2.49466]
[1755095488630,0.002,4668.6,4667.9,2.5160829]
[1755095488932,0.002,4668.6,4668.0,1.9254]
[1755095489228,0.002,4668.6,4668.1,3.775]
[1755095489521,0.002,4668.6,4668.2,3.775]
[1755095489906,0.002,4668.6,4668.3,1.8447]
[1755095490217,0.002,4668.6,4668.4,0.57269]
[1755095490527,0.002,4668.6,4668.5,0.02142015]
[1755095490821,0.002,4668.6,4668.5,1.9519]
[1755095491492,0.002,4668.6,4668.5,9.7539]
[1755095491920,0.002,4668.6,4668.5,9.7531]
[1755095492095,0.002,4668.6,4668.5,11.575]
[1755095492294,0.002,4668.6,4668.5,12.91689]
[1755095492622,0.002,4668.6,4668.5,11.575]
[1755095492823,0.002,4668.6,4668.5,8.906]
[1755095493318,0.002,4668.6,4668.5,8.905]
[1755095494921,0.002,4668.6,4668.5,5.133]
[1755095495126,0.002,4668.6,4668.5,8.905]
[1755095495323,0.002,4668.6,4668.5,11.82379]
[1755095495623,0.002,4668.6,4668.5,11.82179]
[1755095495925,0.002,4668.6,4668.5,2.91879]
[1755095496099,0.002,4668.6,4668.5,3.77]
[1755095496424,0.002,4668.6,4667.9,1.9511]
[1755095496425,0.1084,4668.6,4667.9,1.9511]
[1755095496612,0.1084,4668.6,4668.5,0.0008]
[1755095496815,0.1084,4668.6,4668.5,3.7708]
[1755095497623,0.1084,4668.6,4668.5,0.0008]
[1755095497814,0.1084,4668.6,4668.5,3.7698]
[1755095499409,0.1084,4668.6,4668.5,0.0008]
[1755095499802,0.1084,4668.6,4668.5,3.7688]
[1755095500627,0.1084,4668.6,4668.5,0.0008]
[1755095500828,0.5497,4668.6,4668.5,3.7678]
[1755095501210,0.5497,4668.6,4668.5,0.0008]
[1755095501406,2.3837,4668.6,4668.5,8.8998]
[1755095501607,2.3837,4668.6,4668.5,5.1328]
[1755095501608,5.3837,4668.6,4668.5,5.1328]
[1755095501934,5.58173857,4668.6,4668.5,8.8998]
[1755095503026,5.3837,4668.6,4668.5,8.8998]
[1755095503217,3.5497,4668.6,4668.5,8.8998]
[1755095504838,3.5497,4668.6,4668.5,5.1328]
[1755095505044,3.0,4668.5,4667.2,0.001]
[1755095505243,0.1979381,4668.4,4667.3,5.132]
[1755095505536,3.0,4667.6,4667.4,3.764]
[1755095505839,2.2753,4667.5,4667.4,3.764]
[1755095506132,2.3825,4667.5,4667.4,3.764]
[1755095506320,2.3825,4667.5,4667.3,5.132]
[1755095506631,2.2753,4667.4,4667.3,5.132]
[1755095506930,5.43741789,4667.4,4667.3,8.896]
[1755095508525,5.43741789,4667.4,4667.3,8.895]
[1755095509105,5.75201319,4667.4,4667.3,8.895]
[1755095509303,5.43741789,4667.4,4667.3,8.895]
[1755095509552,5.63518111,4667.4,4667.3,8.895]
[1755095510151,3.0,4667.3,4666.7,0.001]
[1755095510306,26.53387422,4666.8,4666.1,0.02]
[1755095510513,3.0,4666.7,4666.2,8.616]
[1755095510730,2.2753,4666.6,4666.2,8.616]
[1755095510932,0.1072,4666.3,4666.2,8.616]
[1755095511242,2.3825,4666.3,4666.2,8.895]
[1755095511545,2.3825,4666.3,4666.1,0.02]
[1755095511743,2.2753,4666.2,4665.6,0.001]
[1755095511921,2.2753,4666.2,4664.2,2.669]
[1755095511922,26.64107422,4665.7,4664.2,2.669]
[1755095512116,3.19762034,4665.6,4665.2,8.894]
[1755095512322,2.47292414,4665.5,4664.2,2.669]
[1755095512510,26.53387422,4664.8,4664.0,0.001]
[1755095512708,26.53387422,4664.8,4664.7,5.134]
[1755095512709,26.64107422,4664.8,4664.7,5.134]
[1755095513017,3.0,4664.7,4664.0,0.001]
[1755095513215,0.1072,4664.5,4664.0,0.001]
[1755095513548,3.0,4664.1,4664.0,0.001]
[1755095513847,3.0,4664.1,4664.0,3.761]
[1755095514013,3.1072,4664.1,4664.0,3.761]
[1755095514341,3.5485,4664.1,4664.0,3.761]
[1755095514572,3.1072,4664.1,4664.0,3.761]
[1755095515048,0.1072,4664.1,4664.0,3.761]
[1755095515426,0.1072,4664.1,4664.0,0.001]
[1755095515750,5.2753,4664.1,4664.0,0.001]
[1755095515951,5.2753,4664.1,4663.5,0.001]
[1755095516248,26.53387422,4663.6,4663.5,0.001]
[1755095516767,28.80917422,4663.6,4663.5,0.001]
[1755095517064,2.9992,4663.5,4663.1,0.02]
[1755095517216,2.2753,4663.5,4663.2,3.759]
[1755095517417,23.53387422,4663.6,4663.2,3.759]
[1755095517418,2.2753,4663.4,4663.2,3.759]
[1755095517618,0.4413,4663.3,4663.2,3.759]
[1755095517937,2.2753,4663.3,4663.1,0.02]
[1755095518139,1.834,4663.2,4663.1,0.02]
[1755095518359,2.2753,4663.2,4663.1,3.778]
[1755095518836,20.78403018,4663.2,4663.1,3.758]
[1755095519038,3.0,4663.1,4662.9,0.001]
[1755095519239,0.19597104,4663.0,4662.9,0.001]
[1755095519439,2.47127104,4663.0,4662.9,3.759]
[1755095519840,2.47099933,4663.0,4662.9,3.759]
[1755095520047,2.47099933,4663.0,4662.9,0.001]
[1755095520227,2.47099933,4663.0,4662.9,3.759]
[1755095520428,5.47099933,4663.0,4662.9,0.001]
[1755095526053,5.35385766,4662.0,4661.9,3.756]
[1755095526255,5.62328303,4662.0,4661.9,3.756]
[1755095526437,5.62328303,4662.0,4661.8,9.54240909]
[1755095526438,3.0,4661.9,4661.8,9.54240909]
[1755095526643,2.35385766,4661.9,4661.8,13.29740909]
[1755095526968,0.75465766,4661.9,4661.8,4.40340909]
[1755095527278,2.2656,4661.9,4661.8,13.29740909]
[1755095527571,0.30265766,4661.9,4661.8,13.29740909]
[1755095527791,0.1072,4661.9,4661.8,13.29740909]
[1755095529191,0.5592,4661.9,4661.8,13.29640909]
[1755095529488,5.46076367,4661.9,4661.8,13.29640909]
[1755095529710,0.75436367,4661.9,4661.8,13.29640909]
[1755095529975,0.5592,4661.9,4661.8,9.54240909]
[1755095530186,2.46076367,4661.9,4661.8,13.29640909]
[1755095530351,0.30236367,4661.9,4661.8,13.29640909]
[1755095530761,0.1072,4661.9,4661.8,15.09240909]
[1755095531285,0.1072,4661.9,4661.8,16.66665]
[1755095531944,0.1072,4661.9,4661.8,15.15730909]